bitfinex-derivatives/quotes_ETHF0:USTF0_20250114
["timestamp","ask_amount","ask_price","bid_price","bid_amount"]
[1736836867669,0.7475,3185.9,3185.6,0.7457]
[1736836868267,0.7475,3185.9,3185.8,40.8]
[1736836869466,2.52392187,3186.3,3185.8,40.8]
[1736836869666,0.7475,3186.2,3185.8,40.8]
[1736836870771,1.06153,3186.2,3185.8,40.8]
[1736836870966,2.52392187,3186.0,3185.8,40.8]
[1736836871267,3.52185,3185.9,3185.8,40.8]
[1736836871869,3.2078,3185.9,3185.0,3.9687]
[1736836872165,3.2078,3185.9,3185.4,0.31409]
[1736836872371,2.52392187,3186.0,3185.5,0.7609]
[1736836872573,2.83796187,3186.0,3185.5,0.7609]
[1736836872772,2.83797187,3186.0,3185.9,40.8]
[1736836873274,2.52392187,3186.0,3185.9,40.8]
[1736836873573,0.7686,3186.1,3185.9,40.8]
[1736836876980,0.7475,3186.2,3185.9,40.8]
[1736836877167,1.56938,3187.8,3186.0,3.35002187]
[1736836877168,3.66198633,3186.8,3186.0,3.35002187]
[1736836877373,0.45418633,3186.8,3186.4,0.31399]
[1736836877574,0.45418633,3186.8,3186.5,0.8261]
[1736836878178,0.45418633,3186.8,3186.6,3.2078]
[1736836878373,0.45418633,3186.8,3186.7,40.8]
[1736836886382,1.66257176,3187.2,3186.7,48.32392187]
[1736836886583,0.3147,3188.9,3186.7,48.32392187]
[1736836886584,3.2078,3188.9,3187.9,0.31385]
[1736836886783,3.2078,3188.9,3188.4,5.73172187]
[1736836886983,2.52392187,3189.6,3188.6,40.8]
[1736836886984,3.2078,3189.5,3188.6,40.8]
[1736836887283,2.3686,3189.8,3188.8,3.2078]
[1736836887284,3.31472187,3189.8,3188.8,3.2078]
[1736836887487,0.45418633,3189.1,3188.8,3.2078]
[1736836892692,0.45418633,3189.1,3189.0,40.8]
[1736836893993,0.8047,3189.4,3189.0,40.8]
[1736836894194,0.45418633,3189.1,3189.0,40.8]
[1736836895193,2.52392187,3189.6,3189.0,40.8]
[1736836895494,0.45418633,3189.4,3189.1,0.31373]
[1736836895794,0.45418633,3189.6,3189.1,0.31373]
[1736836896088,0.45418633,3189.6,3189.0,41.11374]
[1736836896288,3.2078,3189.7,3189.3,0.31371]
[1736836896493,3.66198633,3189.7,3189.3,0.31371]
[1736836896689,0.31904466,3190.3,3189.3,0.31371]
[1736836896690,0.00542466,3190.3,3189.6,3.2078]
[1736836896884,0.00542466,3190.3,3190.1,2.52392187]
[1736836897086,3.2078,3191.1,3190.2,0.31363]
[1736836897392,3.2078,3191.1,3190.4,3.2078]
[1736836897393,0.45418633,3190.8,3190.4,3.2078]
[1736836897695,0.45418633,3190.7,3190.4,3.2078]
[1736836897892,0.45418633,3190.7,3190.6,40.8]
[1736836898086,3.52138,3190.7,3190.6,40.8]
[1736836898291,3.97556633,3190.7,3190.6,40.8]
[1736836898898,0.45418633,3190.7,3190.6,40.8]
[1736836899192,0.76776633,3190.7,3190.6,40.8]
[1736836899393,3.97556633,3190.7,3190.6,40.8]
[1736836903700,0.31367,3189.8,3189.5,3.2078]
[1736836903895,0.8282,3189.7,3189.5,3.2078]
[1736836904495,5.73172187,3190.1,3189.5,3.2078]
[1736836904701,1.28238633,3189.8,3189.5,3.2078]
[1736836904901,0.31368,3189.7,3189.5,3.2078]
[1736836905100,1.10998,3189.7,3189.5,3.2078]
[1736836905305,1.10998,3189.7,3189.6,40.8]
[1736836905704,1.56416633,3189.7,3189.6,40.8]
[1736836914502,4.45828633,3189.7,3189.1,3.2078]
[1736836914701,0.45418633,3189.2,3189.1,3.2078]
[1736836915103,0.76791633,3189.2,3189.1,3.2078]
[1736836915615,0.76791633,3189.2,3189.1,44.0078]
[1736836921213,0.76791633,3189.2,3189.1,40.8]
[1736836921514,0.76791633,3189.2,3188.7,3.2078]
[1736836921515,1.23852633,3189.2,3188.1,3.2078]
[1736836921712,0.45418633,3188.3,3188.1,3.2078]
[1736836922213,2.83773187,3188.4,3188.1,3.2078]
[1736836922411,0.45418633,3188.3,3188.1,3.2078]
[1736836923106,2.83773187,3188.4,3188.2,40.8]
[1736836923309,3.64363187,3188.4,3188.2,40.8]
[1736836923511,0.45418633,3188.3,3188.2,40.8]
[1736836925415,0.76799633,3188.3,3188.2,40.8]
[1736836925920,1.55089633,3188.3,3188.2,40.8]
[1736836926620,0.45418633,3188.3,3188.2,40.8]
[1736836928423,0.76799633,3188.3,3188.2,40.8]
[1736836929415,0.45418633,3188.3,3188.2,40.8]
[1736836931523,0.76799633,3188.3,3188.2,40.8]
[1736836932223,0.45418633,3188.3,3188.2,40.8]
[1736836933729,0.8059,3188.4,3188.2,41.11382]
[1736836933926,1.26008633,3188.4,3188.2,0.31382]
[1736836934227,1.26008633,3188.4,3188.1,3.52163]
[1736836934427,1.26008633,3188.4,3188.3,40.8]
[1736836941444,0.7944,3189.1,3188.3,40.8]
[1736836941742,0.7944,3189.1,3188.1,5.73172187]
[1736836941743,0.45418633,3188.8,3188.7,3.2078]
[1736836942246,0.45418633,3188.8,3188.7,44.0078]
[1736836949855,0.76794633,3188.8,3188.7,44.0078]
[1736836950950,0.45418633,3188.8,3188.7,44.0078]
[1736836956058,0.76794633,3188.8,3188.7,40.8]
[1736836956760,0.45418633,3188.8,3188.7,40.8]
[1736836960661,0.45418633,3188.8,3188.7,44.32157]
[1736836961164,0.45418633,3188.8,3188.7,44.0078]
[1736836968065,0.8026,3189.0,3188.7,44.0078]
[1736836968261,4.68525531,3190.0,3188.7,5.73172187]
[1736836968465,0.45418633,3189.4,3189.2,3.2078]
[1736836968670,0.45418633,3189.4,3189.3,40.8]
[1736836969566,3.2918182,3189.4,3189.3,40.8]
[1736836969868,3.2918182,3189.4,3189.3,40.42561827]
[1736836970072,0.31375,3189.0,3188.6,3.2078]
[1736836970266,1.6349,3188.9,3188.6,3.2078]
[1736836970465,0.45418633,3188.7,3188.6,3.2078]
[1736836971066,0.45418633,3188.7,3188.6,44.0078]
[1736836972966,2.9781082,3188.7,3188.6,44.0078]
[1736836973167,3.2918782,3188.7,3188.6,44.0078]
[1736836974768,2.9781082,3188.7,3188.6,44.0078]
[1736836975273,5.73172187,3189.6,3188.6,44.0078]
[1736836975471,1.27788633,3189.4,3188.6,44.1425]
[1736836975784,1.27788633,3189.4,3189.0,3.2078]
[1736836975971,0.8237,3189.4,3189.0,3.2078]
[1736836976275,0.45418633,3189.1,3189.0,3.2078]
[1736836976366,0.45418633,3189.1,3189.0,44.0078]
[1736836978077,0.8237,3189.4,3189.0,44.0078]
[1736836978280,0.45418633,3189.3,3189.0,44.0078]
[1736836980180,0.7696,3189.5,3189.2,0.31372]
[1736836980379,0.7696,3189.5,3189.4,3.2078]
[1736836980880,1.22378633,3189.5,3189.4,44.0078]
[1736836982275,1.53748633,3189.5,3189.4,44.0078]
[1736836983274,1.22378633,3189.5,3189.4,44.0078]
[1736836983474,1.53748633,3189.5,3189.4,44.0078]
[1736836984079,1.53748633,3189.5,3189.4,42.24155296]
[1736836984376,1.22378633,3189.5,3189.4,42.24155296]
[1736836988177,1.22378633,3189.5,3189.4,40.8]
[1736836991287,1.22378633,3189.5,3189.4,41.11371]
[1736836991582,1.22378633,3189.5,3189.4,40.8]
[1736836992376,0.45418633,3189.5,3189.4,40.8]
[1736836992575,0.8509,3189.9,3189.4,40.8]
[1736836992791,0.45418633,3189.7,3189.6,0.31369]
[1736836993182,3.2078,3190.5,3189.5,0.1769]
[1736836993486,0.45418633,3190.0,3189.9,0.31366]
[1736836993885,0.45418633,3190.0,3189.9,41.11366]
[1736836995483,0.45418633,3190.0,3189.9,40.8]
[1736836995685,0.45418633,3190.0,3189.9,41.11366]
[1736836995987,0.31361,3190.4,3189.9,40.8]
[1736836996184,0.45418633,3190.2,3190.0,0.31364]
[1736836997385,0.8509,3190.5,3190.1,0.31363]
[1736836997585,0.45418633,3190.3,3190.2,3.2078]
[1736836997780,0.45418633,3190.3,3190.2,3.52143]
[1736836997987,0.45418633,3190.3,3190.2,44.32143]
[1736836998984,0.45418633,3190.3,3190.2,44.0078]
[1736836999593,3.2917282,3190.3,3190.2,44.0078]
[1736837001895,2.9781082,3190.3,3190.2,44.0078]
[1736837006194,0.45418633,3190.3,3190.2,44.0078]
[1736837007387,0.45418633,3190.3,3190.2,44.32143]
[1736837007787,0.45418633,3190.3,3190.2,40.8]
[1736837008182,0.45418633,3190.3,3190.2,41.11363]
[1736837009398,0.45418633,3190.3,3190.2,44.32143]
[1736837010188,0.45418633,3190.3,3190.2,44.0078]
[1736837012388,2.9781082,3190.3,3190.2,44.0078]
[1736837013491,2.9781082,3190.3,3190.2,40.8]
[1736837017591,0.45418633,3190.3,3190.2,40.8]
[1736837019399,0.76780633,3190.3,3190.2,40.8]
[1736837019999,0.31363,3190.2,3189.7,3.2078]
[1736837020198,0.45418633,3189.8,3189.7,3.2078]
[1736837020794,0.45418633,3189.8,3189.7,44.0078]
[1736837024501,0.45418633,3189.8,3189.7,40.8]
[1736837025299,3.2917782,3189.8,3189.7,40.8]
[1736837027594,0.31372,3189.3,3189.2,3.2078]
[1736837027799,0.31374,3189.1,3188.7,3.2078]
[1736837027995,0.45418633,3188.8,3188.4,0.3138]
[1736837028200,0.7846,3189.3,3188.7,3.2078]
[1736837028407,0.45418633,3189.4,3189.2,0.31373]
[1736837028702,0.45418633,3189.4,3189.3,40.8]
[1736837030892,3.2918182,3189.4,3189.3,40.8]
[1736837031597,6.4996182,3189.4,3189.3,40.8]
[1736837038099,6.4996182,3189.4,3188.2,3.2078]
[1736837038100,11.1859082,3189.4,3188.2,3.2078]
[1736837038406,0.45418633,3188.4,3188.2,3.2078]
[1736837039108,0.45418633,3188.4,3188.3,40.8]
[1736837052616,0.76798633,3188.4,3188.3,40.8]
[1736837054715,0.31384,3188.1,3187.6,3.2078]
[1736837054914,0.45418633,3187.7,3187.6,3.2078]
[1736837055615,0.45418633,3187.7,3187.6,44.0078]
[1736837061218,0.76805633,3187.7,3187.6,44.0078]
[1736837065524,0.45418633,3187.7,3187.6,44.0078]
[1736837069227,0.76805633,3187.7,3187.6,44.0078]
[1736837071545,0.76805633,3187.7,3187.6,40.8]
[1736837081045,0.45418633,3187.7,3187.6,40.8]
[1736837081256,0.76805633,3187.7,3187.6,40.8]
[1736837081638,0.45418633,3187.7,3187.6,40.8]
[1736837081836,0.76805633,3187.7,3187.6,40.8]
[1736837086242,0.45418633,3187.7,3187.6,40.8]
[1736837088341,0.45418633,3187.7,3187.6,40.9803]
[1736837088741,0.76805633,3187.7,3187.6,40.9803]
[1736837088958,0.76805633,3187.7,3187.6,40.8]
[1736837095452,1.95077735,3187.7,3187.6,40.8]
[1736837097259,0.45418633,3187.7,3187.6,40.8]
[1736837097444,0.8419,3188.0,3187.6,42.16302102]
[1736837097650,1.29608633,3188.0,3187.6,1.36302102]
[1736837097853,2.47880735,3188.0,3187.6,1.36302102]
[1736837098049,2.47880735,3188.0,3187.9,40.8]
[1736837098356,2.79264735,3188.0,3187.9,40.8]
[1736837101249,2.47880735,3188.0,3187.9,40.8]
[1736837101455,2.79264735,3188.0,3187.9,40.8]
[1736837103150,1.60992633,3188.0,3187.9,40.8]
[1736837103345,2.79264735,3188.0,3187.9,40.8]
[1736837105360,2.47880735,3188.0,3187.9,40.8]
[1736837107762,2.79264735,3188.0,3187.9,40.8]
[1736837110164,3.97536837,3188.0,3187.9,40.8]
[1736837110562,2.79264735,3188.0,3187.9,40.8]
[1736837111665,3.97536837,3188.0,3187.9,40.8]
[1736837114264,7.18316837,3188.0,3187.9,40.8]
[1736837117269,0.31387,3187.8,3187.5,0.01346]
[1736837117468,1.63690735,3187.6,3187.5,0.01346]
[1736837117966,0.45418633,3187.6,3187.5,0.01346]
[1736837118166,0.45418633,3187.6,3187.5,40.81346]
[1736837118167,2.45250735,3187.6,3187.5,40.81346]
[1736837119765,2.45250735,3187.6,3187.5,40.8]
[1736837123369,5.97418735,3187.6,3187.5,40.8]
[1736837123964,4.0497,3188.0,3187.5,40.8]
[1736837124170,3.32760735,3188.0,3187.6,0.31388]
[1736837124373,1.18272102,3188.0,3187.7,3.52167]
[1736837124674,1.18272102,3188.0,3187.9,40.8]
[1736837126069,1.63690735,3188.0,3187.9,40.8]
[1736837126268,3.13346837,3188.0,3187.9,40.8]
[1736837127479,3.26688649,3188.0,3187.9,40.8]
[1736837127682,0.31385,3187.9,3187.2,3.2078]
[1736837127875,2.95304649,3187.3,3187.2,3.2078]
[1736837128777,2.95304649,3187.3,3187.2,44.0078]
[1736837128978,2.95304649,3187.3,3187.2,40.8]
[1736837130773,3.26695649,3187.3,3187.2,40.8]
[1736837133188,5.73595649,3187.3,3187.2,40.8]
[1736837134981,5.96256116,3187.3,3187.2,40.8]
[1736837135182,5.42204649,3187.3,3187.2,40.8]
[1736837137480,5.73595649,3187.3,3187.2,40.8]
[1736837141989,5.9646408,3187.3,3187.2,40.8]
[1736837142986,5.42204649,3187.3,3187.2,40.8]
[1736837143886,5.73595649,3187.3,3187.2,40.8]
[1736837145590,5.42204649,3187.3,3187.2,40.8]
[1736837145791,3.2078,3187.8,3187.2,40.8]
[1736837145792,3.2078,3187.8,3187.2,44.32171]
[1736837146006,0.45418633,3187.7,3187.3,0.166]
[1736837146293,0.45418633,3187.7,3187.4,0.146]
[1736837146488,0.45418633,3187.7,3187.6,40.8]
[1736837146489,1.26018633,3187.7,3187.6,40.8]
[1736837146691,2.04068633,3187.7,3187.6,40.8]
[1736837146887,2.35455633,3187.7,3187.6,40.8]
[1736837147992,2.04068633,3187.7,3187.6,40.8]
[1736837148298,1.26018633,3187.7,3187.6,40.8]
[1736837148692,1.57405633,3187.7,3187.6,40.8]
[1736837149192,0.45418633,3187.7,3187.6,40.8]
[1736837151390,0.76805633,3187.7,3187.6,40.8]
[1736837154096,0.45418633,3187.7,3187.6,40.8]
[1736837159900,0.76805633,3187.7,3187.6,40.8]
[1736837160706,3.73773649,3187.7,3187.0,3.2078]
[1736837160898,3.73773649,3187.7,3186.7,0.166]
[1736837160899,3.26697649,3187.1,3186.7,0.166]
[1736837161101,0.45418633,3186.8,3186.6,0.36525678]
[1736837161306,2.95304649,3186.8,3186.6,0.36525678]
[1736837161706,2.95304649,3186.8,3186.7,40.8]
[1736837163901,2.49886016,3187.1,3186.7,40.8]
[1736837164105,0.45418633,3187.0,3186.8,0.31396]
[1736837164299,0.45418633,3187.0,3186.9,0.1457]
[1736837164501,0.45418633,3187.0,3186.9,0.312]
[1736837164895,0.45418633,3187.0,3186.9,41.42595]
[1736837165099,0.31389,3187.6,3187.1,0.31393]
[1736837165302,0.45418633,3187.3,3187.0,0.31394]
[1736837165703,0.45418633,3187.3,3187.1,0.31393]
[1736837166409,0.45418633,3187.3,3186.9,44.3198]
[1736837166708,0.45418633,3187.3,3187.1,0.31393]
[1736837166917,0.45418633,3187.3,3187.2,0.31392]
[1736837167107,2.81274016,3187.7,3187.2,0.31392]
[1736837167307,2.81274016,3187.7,3187.4,3.2078]
[1736837167504,2.81274016,3187.7,3187.6,40.8]
[1736837167702,0.45418633,3187.7,3187.6,40.8]
[1736837169706,5.70666016,3188.3,3187.9,0.31385]
[1736837170006,1.246,3188.8,3187.6,45.8]
[1736837170007,0.7879,3188.6,3188.1,0.31383]
[1736837170304,0.45418633,3188.4,3188.0,0.1664]
[1736837170505,0.45418633,3188.4,3188.2,0.31381]
[1736837170906,0.45418633,3188.4,3188.1,0.46043]
[1736837171409,0.45418633,3188.4,3188.1,0.0733]
[1736837172211,0.45418633,3188.3,3188.1,0.0733]
[1736837172605,0.45418633,3188.3,3188.2,3.2078]
[1736837173105,0.45418633,3188.3,3188.2,44.0078]
[1736837174505,3.26685649,3188.3,3188.2,44.0078]
[1736837174701,3.26685649,3188.3,3188.2,40.8]
[1736837176712,2.95304649,3188.3,3188.2,40.8]
[1736837182316,7.72065649,3188.3,3188.2,40.8]
[1736837183012,6.16084649,3188.3,3188.2,40.8]
[1736837183308,0.45418633,3188.3,3188.2,40.8]
[1736837183511,0.45418633,3188.3,3188.2,41.11382]
[1736837183714,0.7879,3188.6,3188.2,44.0078]
[1736837183908,0.7879,3188.6,3188.4,0.3138]
[1736837184413,0.8204,3188.8,3188.2,3.2078]
[1736837184612,0.8204,3188.8,3188.7,3.2078]
[1736837184919,0.783,3189.0,3188.7,3.2078]
[1736837185116,0.45418633,3188.8,3188.7,3.2078]
[1736837185818,0.45418633,3188.8,3188.7,44.0078]
[1736837190122,0.45418633,3188.8,3188.7,40.8]
[1736837190322,0.45418633,3188.8,3188.7,44.0078]
[1736837191823,0.45418633,3188.8,3188.7,44.32157]
[1736837192129,0.45418633,3188.8,3188.7,44.0078]
[1736837192323,0.45418633,3188.8,3188.7,44.32157]
[1736837192524,0.45418633,3188.8,3188.7,44.0078]
[1736837192722,0.45418633,3188.8,3188.7,44.32157]
[1736837193729,0.31372,3189.3,3188.8,0.31376]
[1736837193932,0.8536,3189.0,3188.8,0.31376]
[1736837194331,0.8536,3189.0,3188.9,40.8]
[1736837194839,1.30778633,3189.0,3188.9,40.8]
[1736837196632,1.62153633,3189.0,3188.9,40.8]
[1736837197535,4.82933633,3189.0,3188.9,40.8]
[1736837197933,12.24579928,3189.0,3188.1,3.2078]
[1736837198239,2.95304649,3188.2,3188.1,3.2078]
[1736837198831,2.95304649,3188.2,3188.1,44.0078]
[1736837201033,0.45418633,3188.2,3188.1,44.32163]
[1736837201233,2.5104,3188.4,3188.1,44.0078]
[1736837201439,0.45418633,3188.3,3188.1,44.32163]
[1736837201838,0.45418633,3188.3,3188.1,44.0078]
[1736837202235,0.45418633,3188.3,3188.2,0.31382]
[1736837202540,0.45418633,3188.3,3188.1,3.52163]
[1736837202934,0.45418633,3188.3,3188.2,40.8]
[1736837203135,3.2078,3188.5,3188.2,40.8]
[1736837203334,3.2078,3188.9,3188.6,0.31378]
[1736837203535,0.45418633,3188.9,3188.6,0.31378]
[1736837203944,0.45418633,3188.9,3188.8,40.8]
[1736837204134,0.8158,3189.0,3188.8,40.8]
[1736837204330,0.45418633,3188.9,3188.8,40.8]
[1736837206043,0.8158,3189.0,3188.8,40.8]
[1736837206243,1.26998633,3189.0,3188.8,40.8]
[1736837208539,1.7118,3189.2,3188.9,3.52156]
[1736837208842,0.45418633,3189.1,3189.0,0.31374]
[1736837209345,0.8522,3189.2,3189.0,40.8]
[1736837209538,1.7061,3189.8,3189.0,43.29886016]
[1736837209736,0.45418633,3189.4,3189.3,0.31372]
[1736837210345,2.5129,3189.8,3189.3,0.31372]
[1736837210548,0.45418633,3189.5,3189.0,2.88206016]
[1736837210841,0.45418633,3189.5,3189.3,0.31371]
[1736837211047,2.82657,3189.8,3189.4,40.8]
[1736837211448,0.45418633,3189.5,3189.4,40.8]
[1736837212852,0.76788633,3189.5,3189.4,40.8]
[1736837214044,0.45418633,3189.5,3189.4,40.8]
[1736837220856,0.45418633,3189.5,3189.4,41.11371]
[1736837221243,1.6674,3189.8,3189.6,0.31368]
[1736837221444,2.12158633,3189.8,3189.5,0.31369]
[1736837221652,0.45418633,3189.6,3189.4,0.3137]
[1736837222150,0.45418633,3189.6,3189.5,40.8]
[1736837222348,0.45418633,3189.6,3189.5,41.1137]
[1736837223546,0.45418633,3189.6,3189.5,40.8]
[1736837224153,0.45418633,3189.6,3189.5,41.1137]
[1736837224752,0.45418633,3189.6,3189.5,40.8]
[1736837224962,0.45418633,3189.6,3189.5,41.1137]
[1736837225455,1.6674,3189.8,3189.5,41.1137]
[1736837225653,1.26098633,3189.8,3189.6,0.31369]
[1736837227454,1.26098633,3189.8,3189.7,40.8]
[1736837228351,1.57465633,3189.8,3189.7,40.8]
[1736837229049,1.26098633,3189.8,3189.7,40.8]
[1736837233765,1.57465633,3189.8,3189.7,40.8]
[1736837234165,0.3137,3189.5,3189.4,3.2078]
[1736837234357,2.95304649,3189.5,3188.9,3.2078]
[1736837234557,2.95304649,3189.5,3188.4,2.77196016]
[1736837234558,0.45418633,3189.0,3188.6,0.31378]
[1736837234960,0.45418633,3189.0,3188.5,3.2078]
[1736837235260,0.45418633,3189.0,3188.9,41.11375]
[1736837235659,0.45418633,3189.0,3188.9,40.8]
[1736837238461,0.45418633,3189.0,3188.9,41.11375]
[1736837240064,0.45418633,3189.0,3188.9,40.8]
[1736837245067,1.6818,3189.1,3188.9,40.8]
[1736837245274,0.45418633,3189.0,3188.9,40.8]
[1736837245573,0.45418633,3189.0,3188.5,3.2078]
[1736837245766,0.45418633,3188.7,3188.5,3.52159]
[1736837245968,0.45418633,3188.7,3188.6,40.8]
[1736837246165,0.45418633,3188.7,3188.6,41.11378]
[1736837246361,0.45418633,3188.7,3188.6,40.8]
[1736837246966,1.24898633,3188.7,3188.6,40.8]
[1736837248874,1.56275633,3188.7,3188.6,40.8]
[1736837251979,1.24898633,3188.7,3188.6,40.8]
[1736837252277,1.56275633,3188.7,3188.6,40.8]
[1736837252871,1.24898633,3188.7,3188.6,40.8]
[1736837254177,0.45418633,3188.7,3188.6,41.11378]
[1736837254477,3.2078,3189.2,3189.1,0.31373]
[1736837254875,3.66198633,3189.2,3189.1,0.31373]
[1736837255373,3.66198633,3189.2,3189.1,41.11373]
[1736837257076,0.45418633,3189.2,3189.1,41.11373]
[1736837257378,3.2078,3189.6,3189.1,40.8]
[1736837257575,3.2078,3189.6,3189.4,0.3137]
[1736837257973,0.45418633,3189.5,3189.4,0.3137]
[1736837258582,0.45418633,3189.5,3189.4,41.1137]
[1736837260682,0.45418633,3189.5,3189.4,41.11371]
[1736837262574,0.45418633,3189.5,3189.4,40.8]
[1736837262777,2.95304649,3189.5,3189.4,40.8]
[1736837263378,3.26674649,3189.5,3189.4,40.8]
[1736837264384,2.95304649,3189.5,3189.4,40.8]
[1736837264683,3.26674649,3189.5,3189.4,40.8]
[1736837265080,2.95304649,3189.5,3189.4,40.8]
[1736837265976,2.95304649,3189.5,3188.5,3.2078]
[1736837266284,1.89980701,3189.7,3188.2,2.49886016]
[1736837266285,0.45418633,3188.6,3188.2,0.7476]
[1736837266478,2.49886016,3189.0,3188.5,0.31379]
[1736837266687,0.45418633,3188.5,3188.4,0.3138]
[1736837266882,0.45418633,3188.5,3188.4,41.1138]
[1736837267678,0.45418633,3188.5,3188.4,40.8]
[1736837267979,0.76797633,3188.5,3188.4,40.8]
[1736837268581,0.45418633,3188.2,3187.7,3.19545577]
[1736837268781,0.45418633,3187.8,3187.7,3.19545577]
[1736837269583,0.45418633,3187.8,3187.7,43.99545577]
[1736837271079,0.45418633,3187.8,3187.7,40.8]
[1736837271988,0.76804633,3187.8,3187.7,40.8]
[1736837272279,0.45418633,3187.8,3187.7,40.8]
[1736837272481,0.76804633,3187.8,3187.7,40.8]
[1736837274784,0.45418633,3187.8,3187.7,40.8]
[1736837277886,0.45418633,3187.8,3186.9,0.7494]
[1736837278091,0.45418633,3187.0,3186.9,0.7494]
[1736837278788,0.45418633,3187.0,3186.9,1.06335]
[1736837278996,0.45418633,3187.0,3186.9,41.86335]
[1736837279288,0.45418633,3187.0,3186.9,41.5494]
[1736837279487,0.45418633,3187.0,3186.9,41.86335]
[1736837280883,0.45418633,3187.0,3186.9,41.5494]
[1736837281802,0.45418633,3187.0,3186.9,40.8]
[1736837284699,0.7708,3187.1,3186.9,40.8]
[1736837284899,0.7708,3187.1,3186.6,3.2078]
[1736837284900,1.22498633,3187.1,3187.0,0.31394]
[1736837285290,1.22498633,3187.1,3187.0,40.8]
[1736837286896,1.53891633,3187.1,3187.0,40.8]
[1736837287298,1.22498633,3187.1,3187.0,40.8]
[1736837295207,2.30991633,3187.1,3187.0,40.8]
[1736837295414,1.99598633,3187.1,3187.0,40.8]
[1736837296706,2.30991633,3187.1,3187.0,40.8]
[1736837300007,1.99598633,3187.1,3186.0,4.0083]
[1736837300208,0.45418633,3186.4,3186.0,4.32234]
[1736837300414,0.45418633,3186.3,3186.0,4.32234]
[1736837300807,0.45418633,3186.1,3186.0,4.0083]
[1736837301012,2.95304649,3186.1,3186.0,44.0078]
[1736837301310,3.26707649,3186.1,3186.0,44.0078]
[1736837301610,2.95304649,3186.1,3186.0,44.0078]
[1736837301816,3.26707649,3186.1,3186.0,44.0078]
[1736837302114,2.95304649,3186.1,3186.0,44.0078]
[1736837302615,3.26707649,3186.1,3186.0,40.8]
[1736837302911,3.26707649,3186.1,3185.3,3.2078]
[1736837302912,0.31408,3185.7,3185.3,3.2078]
[1736837303213,0.45418633,3185.4,3185.3,3.2078]
[1736837303811,0.45418633,3185.4,3185.3,44.0078]
[1736837305019,0.45418633,3185.4,3185.3,40.8]
[1736837305811,0.76828633,3185.4,3185.3,40.8]
[1736837306015,0.45418633,3185.4,3185.3,40.8]
[1736837306320,0.76828633,3185.4,3185.3,40.8]
[1736837309418,0.45418633,3185.4,3185.3,40.8]
[1736837311215,0.76828633,3185.4,3185.3,40.8]
[1736837311621,0.45418633,3185.4,3185.3,40.8]
[1736837312215,0.76828633,3185.4,3185.3,40.8]
[1736837312423,3.97608633,3185.4,3185.3,40.8]
[1736837313920,3.66198633,3185.4,3185.3,40.8]
[1736837316813,3.97608633,3185.4,3185.3,40.8]
[1736837321532,3.66198633,3185.4,3184.8,3.2078]
[1736837321733,0.45418633,3185.0,3184.8,3.2078]
[1736837322029,0.45418633,3184.9,3184.8,3.2078]
[1736837322427,0.45418633,3184.7,3184.0,3.2078]
[1736837322633,0.45418633,3184.2,3184.0,4.5329]
[1736837322931,0.45418633,3184.2,3184.0,1.3251]
[1736837325637,0.45418633,3184.2,3184.1,0.5643]
[1736837326139,0.76840633,3184.2,3184.1,0.5643]
[1736837327336,0.31425,3184.0,3183.6,3.2078]
[1736837327640,0.45418633,3183.9,3183.7,1.9354]
[1736837328236,0.31427,3183.7,3183.6,3.2078]
[1736837328742,2.49886016,3184.1,3183.6,3.2078]
[1736837329042,0.76843633,3183.9,3183.6,3.2078]
[1736837329237,0.31426,3183.8,3183.6,3.2078]
[1736837329932,0.45418633,3183.8,3183.6,3.2078]
[1736837330142,0.76844633,3183.8,3183.6,3.2078]
[1736837330344,0.31427,3183.7,3183.6,3.2078]
[1736837331037,0.76845633,3183.7,3183.6,3.2078]
[1736837331741,0.45418633,3183.7,3183.6,3.2078]
[1736837333345,0.45418633,3183.7,3183.1,1.3743]
[1736837333346,0.45418633,3183.7,3183.1,4.5821]
[1736837333542,3.2078,3183.9,3183.1,4.5821]
[1736837333543,3.26733649,3183.5,3183.1,4.5821]
[1736837333844,2.95304649,3183.5,3183.1,4.89643]
[1736837334249,3.26733649,3183.5,3183.1,4.5821]
[1736837334836,3.26733649,3183.5,3183.1,4.89643]
[1736837335341,0.3143,3183.4,3183.1,4.5821]
[1736837335541,3.26733649,3183.5,3183.1,4.89642]
[1736837335845,0.45418633,3183.5,3183.1,4.5821]
[1736837336043,0.3143,3183.4,3183.1,4.5821]
[1736837337150,0.31429,3183.5,3183.1,4.5821]
[1736837337351,0.31431,3183.4,3183.1,4.5821]
[1736837338341,0.8067,3183.6,3183.1,4.89642]
[1736837338642,0.76847633,3183.5,3183.1,4.89642]
[1736837340145,0.45418633,3183.5,3183.1,4.89642]
[1736837340443,0.3143,3183.4,3183.1,4.5821]
[1736837340650,0.76848633,3183.4,3183.1,4.89642]
[1736837340851,0.45418633,3183.4,3183.2,0.31432]
[1736837341037,0.76848633,3183.4,3183.1,4.5821]
[1736837341450,0.45418633,3183.4,3183.1,4.89642]
[1736837341650,0.45418633,3183.4,3183.1,4.5821]
[1736837341948,0.45418633,3183.4,3183.1,4.89642]
[1736837342440,0.45418633,3183.4,3183.1,3.52212]
[1736837342638,0.31432,3183.2,3183.1,3.2078]
[1736837342855,0.76849633,3183.3,3183.1,3.2078]
[1736837343850,0.76849633,3183.3,3182.9,0.31434]
[1736837344449,0.7853,3183.2,3183.0,0.31433]
[1736837344761,0.45418633,3183.3,3183.2,0.31432]
[1736837346344,0.8067,3183.6,3183.1,1.3749]
[1736837346550,0.45418633,3183.4,3183.3,0.31431]
[1736837346949,0.45418633,3183.4,3183.1,0.87922]
[1736837347150,0.45418633,3183.2,3183.1,0.5649]
[1736837347446,3.26736649,3183.2,3182.8,1.05505]
[1736837347646,3.26736649,3183.2,3182.8,0.31435]
[1736837347846,2.95304649,3183.2,3182.7,0.5609]
[1736837348152,0.45418633,3183.0,3182.7,0.5609]